[Event "Bremer Silvester Open 2018"]
[Site "Bremen"]
[Date "2018.12.28"]
[Round "2"]
[White "Buescher, Andre"]
[Black "Hoeffer, David"]
[Result "0-1"]
[ECO "C41"]
[WhiteElo "2018"]
[BlackElo "2259"]
[Annotator "RC"]
[PlyCount "98"]
[EventDate "2018.12.27"]
[EventType "swiss"]
[EventCountry "GER"]
[SourceTitle "playchess.com"]
[Source "ChessBase"]
[SourceQuality "1"]
[TimeControl "40/5400+30:1800+30"]

1. e4 {[%emt 0:00:00]} e5 {[%emt 0:00:35]} 2. Nf3 {[%emt 0:00:00]} d6 {[%emt 0:00:05]} 3. d4 {[%emt 0:02:00]} exd4 {[%emt 0:02:07]} 4. Nxd4 {[%emt 0:00:17]} Nf6 {[%emt 0:00:07]} 5. Nc3 {[%emt 0:00:28]} Be7 {[%emt 0:00:05]} 6. Bf4 {[%emt 0:04:23]} O-O {[%emt 0:00:09]} 7. Qd2 {[%emt 0:00:42]} c6 {[%emt 0:00:06]} 8. O-O-O {[%emt 0:01:45]} b5 {[%emt 0:00:05]} 9. f3 {[%emt 0:02:53]} b4 {[%emt 0:00:12]} 10. Nce2 {[%emt 0:01:19]} c5 {[%emt 0:00:48]} 11. Nf5 {[%emt 0:01:26]} Bxf5 {[%emt 0:00:13]} 12. exf5 {[%emt 0:00:13]} d5 {[%emt 0:00:05]} 13. Kb1 {[%emt 0:11:35]} d4 {[%emt 0:03:27]} 14. Nc1 {[%emt 0:03:08]} Nbd7 {[%emt 0:02:27]} 15. g4 {[%emt 0:02:00]} Nd5 {[%emt 0:01:09]} 16. h4 {[%emt 0:08:02]} N7b6 {[%emt 0:09:42]} 17. g5 {[%emt 0:03:55]} Nxf4 {[%emt 0:03:35]} 18. Qxf4 {[%emt 0:00:06]} Nd5 {[%emt 0:00:05]} 19. Qe4 {[%emt 0:06:11]} Re8 {[%emt 0:08:32]} 20. Bb5 {[%emt 0:04:20]} Qd6 {[%emt 0:12:39]} 21. Bxe8 {[%emt 0:04:09]} Rxe8 {[%emt 0:00:05]} 22. Rhe1 {[%emt 0:06:06]} Rd8 {[%emt 0:01:26]} 23. g6 {[%emt 0:07:01]} hxg6 {[%emt 0:01:42]} 24. fxg6 {[%emt 0:00:18]} Qxg6 {[%emt 0:00:07]} 25. Qxg6 {[%emt 0:03:24]} fxg6 {[%emt 0:00:11]} 26. Re6 {[%emt 0:05:42]} Kf7 {[%emt 0:02:49]} 27. Rc6 {[%emt 0:00:32]} Ne3 {[%emt 0:01:12]} 28. Rg1 {[%emt 0:01:20]} c4 {[%emt 0:01:23]} 29. Rc7 {[%emt 0:10:19]} d3 {[%emt 0:01:50]} 30. cxd3 {[%emt 0:02:15]} cxd3 {[%emt 0:00:05]} 31. Nb3 {[%emt 0:05:06]} d2 {[%emt 0:01:26]} 32. Nxd2 {[%emt 0:00:04]} Rxd2 {[%emt 0:00:08]} 33. Re1 {[%emt 0:00:21]} Rd3 {[%emt 0:03:30]} 34. Rxa7 {[%emt 0:00:21]} Kf6 {[%emt 0:00:46]} 35. a4 {[%emt 0:00:54]} b3 {[%emt 0:01:04]} 36. a5 {[%emt 0:00:48]} Bb4 {[%emt 0:00:22]} 37. Rc1 {[%emt 0:01:33]} Rd6 {[%emt 0:27:11]} 38. a6 {[%emt 0:00:12]} Bd2 {[%emt 0:01:42]} 39. Rc5 {[%emt 0:01:45]} Nc2 {[%emt 0:02:01]} 40. Rcc7 {[%emt 0:01:07]} g5 {[%emt 0:12:36]} 41. h5 {[%emt 0:04:32]} g4 {[%emt 0:01:21]} 42. Rf7+ {[%emt 0:01:51]} Kg5 {[%emt 0:01:00]} 43. Rxg7+ {[%emt 0:05:36]} Kh4 {[%emt 0:02:00]} 44. Rxg4+ {[%emt 0:02:20]} Kh3 {[%emt 0:02:50]} 45. Rg6 {[%emt 0:03:30]} Rd5 {[%emt 0:01:29]} 46. Rb7 {[%emt 0:06:33]} Bb4 {[%emt 0:04:46]} 47. Kc1 {[%emt 0:01:19]} Ne3 {[%emt 0:01:01]} 48. Rg1 {[%emt 0:01:18]} Kh2 {[%emt 0:00:06]} 49. Rxb4 {[%emt 0:01:11]} Kxg1 {[%emt 0:00:06]} 0-1

[Event "Bremer Silvester Open 2018"]
[Site "Bremen"]
[Date "2018.12.28"]
[Round "3"]
[White "Polster, Christian"]
[Black "Villwock, Martin"]
[Result "0-1"]
[ECO "D00"]
[WhiteElo "2306"]
[BlackElo "2208"]
[Annotator "NA"]
[PlyCount "94"]
[EventDate "2018.12.27"]
[EventType "swiss"]
[EventCountry "GER"]
[SourceTitle "playchess.com"]
[Source "ChessBase"]
[SourceQuality "1"]
[TimeControl "40/5400+30:1800+30"]

1. d4 {[%emt 0:00:00]} d5 {[%emt 0:00:00]} 2. Bf4 {[%emt 0:01:47]} Nf6 {[%emt 0:01:28]} 3. e3 {[%emt 0:00:56]} g6 {[%emt 0:00:37]} 4. Nc3 {[%emt 0:01:52]} c6 {[%emt 0:01:38]} 5. Bd3 {[%emt 0:01:03]} Bg7 {[%emt 0:00:28]} 6. h3 {[%emt 0:00:55]} O-O {[%emt 0:00:59]} 7. Nf3 {[%emt 0:00:05]} Nbd7 {[%emt 0:03:03]} 8. O-O {[%emt 0:02:36]} b6 {[%emt 0:02:22]} 9. e4 {[%emt 0:03:46]} dxe4 {[%emt 0:00:23]} 10. Nxe4 {[%emt 0:00:09]} Bb7 {[%emt 0:02:40]} 11. c4 {[%emt 0:01:26]} c5 {[%emt 0:03:53]} 12. Nxf6+ {[%emt 0:06:46]} Bxf6 {[%emt 0:00:22]} 13. Be2 {[%emt 0:02:06]} cxd4 {[%emt 0:01:13]} 14. Bh6 {[%emt 0:01:10]} Re8 {[%emt 0:01:43]} 15. Nxd4 {[%emt 0:00:52]} Nc5 {[%emt 0:04:00]} 16. Be3 {[%emt 0:00:52]} e5 {[%emt 0:05:30]} 17. Nb5 {[%emt 0:02:38]} Qe7 {[%emt 0:03:21]} 18. Qd6 {[%emt 0:07:19]} e4 {[%emt 0:11:38]} 19. Rab1 {[%emt 0:04:29]} Be5 {[%emt 0:06:18]} 20. Qxe7 {[%emt 0:01:45]} Rxe7 {[%emt 0:00:06]} 21. Rfd1 {[%emt 0:12:54]} Ne6 {[%emt 0:01:40]} 22. b4 {[%emt 0:02:45]} f5 {[%emt 0:04:48]} 23. g3 {[%emt 0:05:15]} g5 {[%emt 0:03:51]} 24. Nd4 {[%emt 0:16:42]} Nxd4 {[%emt 0:08:51]} 25. Bxd4 {[%emt 0:00:08]} Bxd4 {[%emt 0:03:46]} 26. Rxd4 {[%emt 0:00:07]} f4 {[%emt 0:00:46]} 27. Bg4 {[%emt 0:03:09]} f3 {[%emt 0:03:34]} 28. Re1 {[%emt 0:01:46]} Rf8 {[%emt 0:02:33]} 29. Kf1 {[%emt 0:04:46]} Kg7 {[%emt 0:09:38]} 30. Re3 {[%emt 0:03:03]} Kf6 {[%emt 0:04:58]} 31. Ra3 {[%emt 0:09:45]} Ke5 {[%emt 0:01:38]} 32. Rd1 {[%emt 0:00:43]} a6 {[%emt 0:00:43]} 33. Ke1 {[%emt 0:01:10]} Rc7 {[%emt 0:00:56]} 34. Rc3 {[%emt 0:00:45]} b5 {[%emt 0:03:31]} 35. c5 {[%emt 0:01:04]} Bd5 {[%emt 0:00:58]} 36. Kd2 {[%emt 0:00:40]} Ra8 {[%emt 0:02:02]} 37. a3 {[%emt 0:00:41]} a5 {[%emt 0:00:10]} 38. Ke3 {[%emt 0:00:25]} axb4 {[%emt 0:00:20]} 39. axb4 {[%emt 0:00:35]} Ra2 {[%emt 0:00:03]} 40. Rd2 {[%emt 0:00:31]} Ra1 {[%emt 0:00:32]} 41. Rb2 {[%emt 0:08:58]} Rca7 {[%emt 0:08:33]} 42. c6 {[%emt 0:02:57]} Re1+ {[%emt 0:00:47]} 43. Kd2 {[%emt 0:00:07]} Re2+ {[%emt 0:01:07]} 44. Kc1 {[%emt 0:00:21]} Ra1+ {[%emt 0:00:25]} 45. Rb1 {[%emt 0:00:09]} Re1+ {[%emt 0:00:33]} 46. Kd2 {[%emt 0:00:08]} Raxb1 {[%emt 0:00:22]} 47. c7 {[%emt 0:00:45]} Re2# {[%emt 0:24:43]} 0-1

[Event "Bremer Silvester Open 2018"]
[Site "Bremen"]
[Date "2018.12.28"]
[Round "3"]
[White "Hoeffer, David"]
[Black "Steffens, Olaf"]
[Result "1-0"]
[ECO "B00"]
[WhiteElo "2259"]
[BlackElo "2185"]
[Annotator "NA"]
[PlyCount "109"]
[EventDate "2018.12.27"]
[EventType "swiss"]
[EventCountry "GER"]
[SourceTitle "playchess.com"]
[Source "ChessBase"]
[SourceQuality "1"]
[TimeControl "40/5400+30:1800+30"]

1. e4 {[%emt 0:00:00]} b6 {[%emt 0:04:40]} 2. d4 {[%emt 0:00:18]} Bb7 {[%emt 0:00:28]} 3. Bd3 {[%emt 0:00:09]} Nf6 {[%emt 0:07:42]} 4. Qe2 {[%emt 0:02:21]} Nc6 {[%emt 0:00:56]} 5. c3 {[%emt 0:00:52]} e5 {[%emt 0:00:29]} 6. Nf3 {[%emt 0:00:08]} d6 {[%emt 0:02:03]} 7. O-O {[%emt 0:00:44]} Be7 {[%emt 0:05:07]} 8. Bd2 {[%emt 0:00:29]} Nd7 {[%emt 0:05:38]} 9. d5 {[%emt 0:04:11]} Ncb8 {[%emt 0:02:55]} 10. c4 {[%emt 0:00:09]} a5 {[%emt 0:08:06]} 11. b3 {[%emt 0:03:42]} c5 {[%emt 0:17:21]} 12. Nc3 {[%emt 0:02:53]} O-O {[%emt 0:03:50]} 13. g3 {[%emt 0:10:43]} Bc8 {[%emt 0:03:41]} 14. Ne1 {[%emt 0:00:57]} Nf6 {[%emt 0:08:42]} 15. f4 {[%emt 0:03:24]} Bh3 {[%emt 0:01:22]} 16. Ng2 {[%emt 0:00:07]} Nbd7 {[%emt 0:01:51]} 17. a3 {[%emt 0:07:10]} Ng4 {[%emt 0:00:37]} 18. Rae1 {[%emt 0:01:45]} Bf6 {[%emt 0:04:45]} 19. Qf3 {[%emt 0:03:43]} Qe7 {[%emt 0:05:25]} 20. a4 {[%emt 0:04:50]} Rfe8 {[%emt 0:02:02]} 21. Nd1 {[%emt 0:01:51]} h5 {[%emt 0:01:04]} 22. Kh1 {[%emt 0:05:36]} g6 {[%emt 0:00:32]} 23. Rg1 {[%emt 0:02:35]} Kg7 {[%emt 0:02:33]} 24. Nge3 {[%emt 0:00:56]} Rh8 {[%emt 0:00:58]} 25. Re2 {[%emt 0:13:29]} Rh7 {[%emt 0:03:23]} 26. Nf2 {[%emt 0:00:59]} Nxh2 {[%emt 0:01:44]} 27. Kxh2 {[%emt 0:02:53]} Bg4 {[%emt 0:00:05]} 28. Qg2 {[%emt 0:01:03]} exf4 {[%emt 0:00:51]} 29. gxf4 {[%emt 0:00:43]} Ne5 {[%emt 0:00:45]} 30. Rge1 {[%emt 0:05:55]} Nf3+ {[%emt 0:01:05]} 31. Kh1 {[%emt 0:01:01]} Bd4 {[%emt 0:00:30]} 32. Qg3 {[%emt 0:01:18]} Qf6 {[%emt 0:01:45]} 33. Kg2 {[%emt 0:03:40]} Nxd2 {[%emt 0:01:13]} 34. Rxd2 {[%emt 0:02:19]} Bc3 {[%emt 0:00:49]} 35. Rde2 {[%emt 0:07:20]} Bxe1 {[%emt 0:00:38]} 36. e5 {[%emt 0:01:17]} dxe5 {[%emt 0:00:44]} 37. fxe5 {[%emt 0:00:05]} Qg5 {[%emt 0:01:24]} 38. Rxe1 {[%emt 0:00:27]} Re8 {[%emt 0:00:20]} 39. Nf1 {[%emt 0:05:37]} Rhh8 {[%emt 0:00:26]} 40. Nh3 {[%emt 0:01:30]} Bxh3+ {[%emt 0:00:51]} 41. Kxh3 {[%emt 0:02:02]} Qxg3+ {[%emt 0:05:05]} 42. Kxg3 {[%emt 0:01:29]} h4+ {[%emt 0:17:57]} 43. Kf4 {[%emt 0:07:53]} h3 {[%emt 0:00:54]} 44. Nh2 {[%emt 0:00:06]} Rh4+ {[%emt 0:00:33]} 45. Kg3 {[%emt 0:00:10]} Rh5 {[%emt 0:03:35]} 46. Kf4 {[%emt 0:00:07]} Rh4+ {[%emt 0:00:41]} 47. Kg3 {[%emt 0:00:04]} Rh5 {[%emt 0:00:11]} 48. Nf3 {[%emt 0:01:34]} h2 {[%emt 0:02:53]} 49. Rh1 {[%emt 0:00:07]} Kf8 {[%emt 0:01:08]} 50. d6 {[%emt 0:04:17]} Kg7 {[%emt 0:01:45]} 51. Be4 {[%emt 0:01:12]} f6 {[%emt 0:00:52]} 52. d7 {[%emt 0:00:35]} Rd8 {[%emt 0:00:20]} 53. e6 {[%emt 0:00:05]} Kf8 {[%emt 0:00:24]} 54. Bxg6 {[%emt 0:01:08]} Rh6 {[%emt 0:00:05]} 55. Nh4 {[%emt 0:00:47]} 1-0

[Event "Bremer Silvester Open 2018"]
[Site "Bremen"]
[Date "2018.12.28"]
[Round "3"]
[White "Hedke, Fred"]
[Black "Pfreundt, Jakob"]
[Result "1/2-1/2"]
[ECO "C44"]
[WhiteElo "2243"]
[BlackElo "2373"]
[Annotator "NA"]
[PlyCount "94"]
[EventDate "2018.12.27"]
[EventType "swiss"]
[EventCountry "GER"]
[SourceTitle "playchess.com"]
[Source "ChessBase"]
[SourceQuality "1"]
[TimeControl "40/5400+30:1800+30"]

1. e4 {[%emt 0:00:00]} e5 {[%emt 0:00:00]} 2. Nf3 {[%emt 0:00:22]} Nc6 {[%emt 0:00:00]} 3. d4 {[%emt 0:01:08]} exd4 {[%emt 0:00:04]} 4. c3 {[%emt 0:01:37]} d5 {[%emt 0:03:17]} 5. exd5 {[%emt 0:01:03]} Qxd5 {[%emt 0:00:12]} 6. cxd4 {[%emt 0:00:37]} Bg4 {[%emt 0:01:40]} 7. Be2 {[%emt 0:00:39]} Bb4+ {[%emt 0:00:28]} 8. Nc3 {[%emt 0:00:36]} Bxf3 {[%emt 0:00:45]} 9. Bxf3 {[%emt 0:00:27]} Qc4 {[%emt 0:00:09]} 10. Bxc6+ {[%emt 0:01:37]} bxc6 {[%emt 0:00:28]} 11. Qe2+ {[%emt 0:01:04]} Qxe2+ {[%emt 0:00:13]} 12. Kxe2 {[%emt 0:00:10]} O-O-O {[%emt 0:01:42]} 13. Be3 {[%emt 0:02:01]} Ne7 {[%emt 0:00:20]} 14. Rac1 {[%emt 0:05:40]} Nf5 {[%emt 0:04:24]} 15. Rhd1 {[%emt 0:01:34]} Rhe8 {[%emt 0:00:33]} 16. Kf3 {[%emt 0:02:59]} h5 {[%emt 0:13:11]} 17. g3 {[%emt 0:07:15]} Rd6 {[%emt 0:14:28]} 18. a3 {[%emt 0:13:20]} Rf6 {[%emt 0:04:06]} 19. Ke2 {[%emt 0:15:01]} Ba5 {[%emt 0:02:19]} 20. Na4 {[%emt 0:04:23]} Bb6 {[%emt 0:02:37]} 21. Nc5 {[%emt 0:10:40]} Rd6 {[%emt 0:03:17]} 22. Kf3 {[%emt 0:10:31]} Red8 {[%emt 0:07:10]} 23. Ke4 {[%emt 0:03:03]} Rd5 {[%emt 0:05:10]} 24. Nb3 {[%emt 0:04:12]} Kb7 {[%emt 0:05:08]} 25. Rd3 {[%emt 0:00:48]} g5 {[%emt 0:15:57]} 26. h3 {[%emt 0:03:11]} g4 {[%emt 0:04:59]} 27. hxg4 {[%emt 0:00:52]} hxg4 {[%emt 0:00:04]} 28. Rdc3 {[%emt 0:03:17]} Ne7 {[%emt 0:02:28]} 29. a4 {[%emt 0:01:26]} R8d6 {[%emt 0:04:07]} 30. Nc5+ {[%emt 0:01:05]} Bxc5 {[%emt 0:01:09]} 31. Rxc5 {[%emt 0:00:18]} f5+ {[%emt 0:00:41]} 32. Kf4 {[%emt 0:02:02]} Ng6+ {[%emt 0:04:07]} 33. Kg5 {[%emt 0:00:07]} Nf8 {[%emt 0:00:26]} 34. Rxd5 {[%emt 0:00:53]} Rxd5 {[%emt 0:00:03]} 35. Rc4 {[%emt 0:00:55]} Nd7 {[%emt 0:00:55]} 36. b3 {[%emt 0:00:58]} Kb6 {[%emt 0:00:46]} 37. b4 {[%emt 0:01:33]} Kb7 {[%emt 0:00:32]} 38. Kg6 {[%emt 0:00:24]} a5 {[%emt 0:00:31]} 39. bxa5 {[%emt 0:00:50]} Rxa5 {[%emt 0:00:14]} 40. Bd2 {[%emt 0:00:41]} Rd5 {[%emt 0:00:09]} 41. a5 {[%emt 0:30:40]} c5 {[%emt 0:04:23]} 42. Bc3 {[%emt 0:00:00]} c6 {[%emt 0:06:34]} 43. dxc5 {[%emt 0:00:00]} Nxc5 {[%emt 0:00:14]} 44. Rd4 {[%emt 0:00:00]} Nd3 {[%emt 0:01:22]} 45. Rxd5 {[%emt 0:00:00]} cxd5 {[%emt 0:00:06]} 46. Bd4 {[%emt 0:00:00]} f4 {[%emt 0:00:06]} 47. Kf5 {[%emt 0:00:00]} Nxf2 {[%emt 0:01:17] Ke4 [%clk 0:00:00]} 1/2-1/2

[Event "Bremer Silvester Open 2018"]
[Site "Bremen"]
[Date "2018.12.28"]
[Round "3"]
[White "Dettmann, Steffen"]
[Black "Bart, Simon"]
[Result "1-0"]
[ECO "B50"]
[WhiteElo "2201"]
[BlackElo "2072"]
[Annotator "NA"]
[PlyCount "147"]
[EventDate "2018.12.27"]
[EventType "swiss"]
[EventCountry "GER"]
[SourceTitle "playchess.com"]
[Source "ChessBase"]
[SourceQuality "1"]
[TimeControl "40/5400+30:1800+30"]

1. e4 {[%emt 0:00:00]} c5 {[%emt 0:00:00]} 2. Nf3 {[%emt 0:00:00]} d6 {[%emt 0:00:00]} 3. Be2 {[%emt 0:01:39]} Nf6 {[%emt 0:00:25]} 4. d3 {[%emt 0:00:12]} Nc6 {[%emt 0:01:51]} 5. O-O {[%emt 0:00:17]} g6 {[%emt 0:05:23]} 6. c3 {[%emt 0:05:55]} Bg7 {[%emt 0:00:08]} 7. d4 {[%emt 0:00:32]} e5 {[%emt 0:16:19]} 8. dxe5 {[%emt 0:12:53]} dxe5 {[%emt 0:05:29]} 9. Qc2 {[%emt 0:03:27]} O-O {[%emt 0:00:39]} 10. Na3 {[%emt 0:05:22]} Qe7 {[%emt 0:01:37]} 11. Rd1 {[%emt 0:08:23]} Bg4 {[%emt 0:06:31]} 12. h3 {[%emt 0:03:37]} Bd7 {[%emt 0:00:30]} 13. Be3 {[%emt 0:10:23]} h6 {[%emt 0:13:33]} 14. Rd2 {[%emt 0:04:17]} Rac8 {[%emt 0:03:08]} 15. Rad1 {[%emt 0:17:06]} Nd4 {[%emt 0:02:26]} 16. Qb1 {[%emt 0:08:38]} Bc6 {[%emt 0:14:28]} 17. Nxd4 {[%emt 0:06:31]} cxd4 {[%emt 0:02:37]} 18. cxd4 {[%emt 0:00:13]} Nxe4 {[%emt 0:02:07]} 19. Rd3 {[%emt 0:00:40]} Ba4 {[%emt 0:14:59]} 20. Re1 {[%emt 0:01:33]} exd4 {[%emt 0:03:32]} 21. Bxd4 {[%emt 0:00:33]} Qb4 {[%emt 0:00:45]} 22. Bxg7 {[%emt 0:02:30]} Kxg7 {[%emt 0:00:06]} 23. b3 {[%emt 0:02:19]} Bc6 {[%emt 0:00:56]} 24. Nc4 {[%emt 0:00:59]} Qc5 {[%emt 0:00:35]} 25. Qb2+ {[%emt 0:00:28]} Kg8 {[%emt 0:00:39]} 26. Bf3 {[%emt 0:00:41]} Rfe8 {[%emt 0:01:17]} 27. Qd4 {[%emt 0:02:42]} Qxd4 {[%emt 0:01:45]} 28. Rxd4 {[%emt 0:00:24]} Ng5 {[%emt 0:00:29]} 29. Rxe8+ {[%emt 0:00:13]} Rxe8 {[%emt 0:01:16]} 30. Bxc6 {[%emt 0:00:11]} bxc6 {[%emt 0:00:35]} 31. Kf1 {[%emt 0:00:20]} Ne6 {[%emt 0:00:37]} 32. Rd7 {[%emt 0:00:15]} a6 {[%emt 0:00:34]} 33. Nd6 {[%emt 0:00:50]} Rd8 {[%emt 0:00:29]} 34. Rxd8+ {[%emt 0:00:29]} Nxd8 {[%emt 0:00:04]} 35. Ne4 {[%emt 0:00:44]} Ne6 {[%emt 0:00:19]} 36. Nf6+ {[%emt 0:00:35]} Kg7 {[%emt 0:00:36]} 37. Nd7 {[%emt 0:00:06]} a5 {[%emt 0:01:08]} 38. Ne5 {[%emt 0:01:08]} Nd4 {[%emt 0:00:16]} 39. Nc4 {[%emt 0:00:11]} a4 {[%emt 0:00:23]} 40. bxa4 {[%emt 0:00:06]} Kf6 {[%emt 0:00:16]} 41. a5 {[%emt 0:05:42]} Ke6 {[%emt 0:00:06]} 42. a4 {[%emt 0:04:46]} c5 {[%emt 0:03:11]} 43. a6 {[%emt 0:02:39]} Nc6 {[%emt 0:00:35]} 44. Ke2 {[%emt 0:05:16]} Kd5 {[%emt 0:05:31]} 45. Na5 {[%emt 0:07:26]} Na7 {[%emt 0:00:36]} 46. Kd3 {[%emt 0:00:08]} f5 {[%emt 0:01:14]} 47. Kc3 {[%emt 0:01:45]} g5 {[%emt 0:01:21]} 48. Nc4 {[%emt 0:00:52]} f4 {[%emt 0:05:00]} 49. f3 {[%emt 0:01:24]} Nc8 {[%emt 0:02:56]} 50. a5 {[%emt 0:02:04]} Na7 {[%emt 0:01:57]} 51. Nb6+ {[%emt 0:00:56]} Kc6 {[%emt 0:00:09]} 52. Kc4 {[%emt 0:00:19]} Nb5 {[%emt 0:00:52]} 53. Nc8 {[%emt 0:00:52]} Na3+ {[%emt 0:02:36]} 54. Kb3 {[%emt 0:00:30]} Nb5 {[%emt 0:00:23]} 55. Ne7+ {[%emt 0:01:07]} Kd6 {[%emt 0:01:42]} 56. Nf5+ {[%emt 0:00:51]} Kc6 {[%emt 0:01:24]} 57. Nxh6 {[%emt 0:00:41]} Nd6 {[%emt 0:00:34]} 58. Ka4 {[%emt 0:01:12]} Kc7 {[%emt 0:01:34]} 59. Ng4 {[%emt 0:00:46]} Kb8 {[%emt 0:06:27]} 60. Nf2 {[%emt 0:00:18]} Nf5 {[%emt 0:00:27]} 61. Ne4 {[%emt 0:00:24]} c4 {[%emt 0:01:24]} 62. Nxg5 {[%emt 0:00:51]} Ne3 {[%emt 0:00:10]} 63. h4 {[%emt 0:00:37]} c3 {[%emt 0:00:50]} 64. Kb3 {[%emt 0:00:06]} c2 {[%emt 0:00:03]} 65. Kb2 {[%emt 0:00:05]} Nxg2 {[%emt 0:00:52]} 66. h5 {[%emt 0:00:09]} c1=Q+ {[%emt 0:00:38]} 67. Kxc1 {[%emt 0:00:05]} Ka7 {[%emt 0:00:03]} 68. h6 {[%emt 0:00:32]} Nh4 {[%emt 0:00:05]} 69. h7 {[%emt 0:00:08]} Ng6 {[%emt 0:00:04]} 70. Nf7 {[%emt 0:00:04]} Kxa6 {[%emt 0:01:15]} 71. h8=Q {[%emt 0:00:07]} Nxh8 {[%emt 0:00:05]} 72. Nxh8 {[%emt 0:00:03]} Kxa5 {[%emt 0:00:05]} 73. Kd2 {[%emt 0:00:06]} Kb4 {[%emt 0:00:08]} 74. Kd3 {[%emt 0:00:07]} 1-0

[Event "Bremer Silvester Open 2018"]
[Site "Bremen"]
[Date "2018.12.28"]
[Round "3"]
[White "Pahl, Theis"]
[Black "Lammers, Markus"]
[Result "0-1"]
[ECO "A30"]
[WhiteElo "2021"]
[BlackElo "2312"]
[Annotator "NA"]
[PlyCount "82"]
[EventDate "2018.12.27"]
[EventType "swiss"]
[EventCountry "GER"]
[SourceTitle "playchess.com"]
[Source "ChessBase"]
[SourceQuality "1"]
[TimeControl "40/5400+30:1800+30"]

1. Nf3 {[%emt 0:00:00]} Nf6 {[%emt 0:00:05]} 2. g3 {[%emt 0:00:00]} c5 {[%emt 0:00:52]} 3. Bg2 {[%emt 0:00:00]} d5 {[%emt 0:00:03]} 4. O-O {[%emt 0:00:07]} Nc6 {[%emt 0:00:04]} 5. d3 {[%emt 0:00:13]} e6 {[%emt 0:00:46]} 6. Nbd2 {[%emt 0:01:01]} Be7 {[%emt 0:00:06]} 7. c4 {[%emt 0:01:28]} d4 {[%emt 0:01:49]} 8. a3 {[%emt 0:02:59]} O-O {[%emt 0:00:10]} 9. Ne1 {[%emt 0:00:47]} e5 {[%emt 0:01:30]} 10. Nc2 {[%emt 0:01:00]} a5 {[%emt 0:00:10]} 11. b3 {[%emt 0:02:16]} Be6 {[%emt 0:03:13]} 12. Nf3 {[%emt 0:09:49]} h6 {[%emt 0:02:38]} 13. Bb2 {[%emt 0:00:46]} Qc7 {[%emt 0:03:08]} 14. e4 {[%emt 0:05:29]} dxe3 {[%emt 0:03:13]} 15. Nxe3 {[%emt 0:00:52]} Rad8 {[%emt 0:00:23]} 16. Qc2 {[%emt 0:01:00]} Nd4 {[%emt 0:00:14]} 17. Bxd4 {[%emt 0:03:47]} cxd4 {[%emt 0:00:19]} 18. Nd1 {[%emt 0:00:31]} e4 {[%emt 0:14:40]} 19. Nd2 {[%emt 0:14:45]} exd3 {[%emt 0:08:21]} 20. Qxd3 {[%emt 0:00:41]} Nd7 {[%emt 0:00:03]} 21. Qf3 {[%emt 0:03:30]} a4 {[%emt 0:11:00]} 22. b4 {[%emt 0:12:06]} Ne5 {[%emt 0:00:56]} 23. Qxb7 {[%emt 0:00:56]} Qxb7 {[%emt 0:00:17]} 24. Bxb7 {[%emt 0:00:07]} Nxc4 {[%emt 0:00:17]} 25. Nxc4 {[%emt 0:00:17]} Bxc4 {[%emt 0:00:04]} 26. Re1 {[%emt 0:00:15]} Bf6 {[%emt 0:03:48]} 27. Nb2 {[%emt 0:05:15]} Bb5 {[%emt 0:03:19]} 28. Rab1 {[%emt 0:07:39]} d3 {[%emt 0:03:37]} 29. Red1 {[%emt 0:01:16]} Rfe8 {[%emt 0:01:15]} 30. Bf3 {[%emt 0:00:38]} d2 {[%emt 0:02:44]} 31. Kg2 {[%emt 0:00:43]} Re1 {[%emt 0:07:40]} 32. h3 {[%emt 0:04:07]} Bc3 {[%emt 0:00:12]} 33. h4 {[%emt 0:01:34]} g6 {[%emt 0:00:28]} 34. Kh3 {[%emt 0:03:01]} Rd4 {[%emt 0:00:14]} 35. Kg2 {[%emt 0:00:48]} Kg7 {[%emt 0:00:20]} 36. Kh2 {[%emt 0:00:43]} h5 {[%emt 0:02:19]} 37. Kh3 {[%emt 0:00:19]} f6 {[%emt 0:03:01]} 38. Kh2 {[%emt 0:00:33]} Kh6 {[%emt 0:00:08]} 39. Kh3 {[%emt 0:00:25]} g5 {[%emt 0:00:29]} 40. hxg5+ {[%emt 0:00:37]} fxg5 {[%emt 0:00:09]} 41. g4 {[%emt 0:30:21]} Rf4 {[%emt 0:30:36]} 0-1

[Event "Bremer Silvester Open 2018"]
[Site "Bremen"]
[Date "2018.12.28"]
[Round "3"]
[White "Zahn, Fabian"]
[Black "Wachinger, Nikolas"]
[Result "0-1"]
[ECO "D02"]
[WhiteElo "1947"]
[BlackElo "2306"]
[Annotator "NA"]
[PlyCount "80"]
[EventDate "2018.12.27"]
[EventType "swiss"]
[EventCountry "GER"]
[SourceTitle "playchess.com"]
[Source "ChessBase"]
[SourceQuality "1"]
[TimeControl "40/5400+30:1800+30"]

1. d4 {[%emt 0:00:00]} Nf6 {[%emt 0:00:00]} 2. Bf4 {[%emt 0:00:00]} d5 {[%emt 0:00:33]} 3. e3 {[%emt 0:00:00]} c5 {[%emt 0:00:07]} 4. Nf3 {[%emt 0:02:01]} Nc6 {[%emt 0:00:24]} 5. Nbd2 {[%emt 0:00:47]} e6 {[%emt 0:00:24]} 6. c3 {[%emt 0:00:38]} cxd4 {[%emt 0:00:08]} 7. exd4 {[%emt 0:00:10]} Nh5 {[%emt 0:00:07]} 8. Be3 {[%emt 0:00:26]} Bd6 {[%emt 0:00:10]} 9. Ne5 {[%emt 0:00:06]} g6 {[%emt 0:01:15]} 10. Nd3 {[%emt 0:14:35]} f6 {[%emt 0:18:45]} 11. g3 {[%emt 0:11:57]} Ng7 {[%emt 0:03:32]} 12. Bg2 {[%emt 0:04:14]} Nf5 {[%emt 0:01:15]} 13. Qe2 {[%emt 0:02:56]} Nxe3 {[%emt 0:10:38]} 14. Qxe3 {[%emt 0:00:29]} Kf7 {[%emt 0:01:41]} 15. O-O {[%emt 0:04:58]} Ne7 {[%emt 0:05:08]} 16. Rfe1 {[%emt 0:05:34]} Nf5 {[%emt 0:04:11]} 17. Qe2 {[%emt 0:04:11]} h5 {[%emt 0:03:03]} 18. Rad1 {[%emt 0:12:35]} Qc7 {[%emt 0:18:16]} 19. Nf1 {[%emt 0:04:20]} Bd7 {[%emt 0:01:22]} 20. Nc5 {[%emt 0:08:04]} Bxc5 {[%emt 0:04:37]} 21. dxc5 {[%emt 0:00:12]} Qxc5 {[%emt 0:00:12]} 22. c4 {[%emt 0:00:53]} d4 {[%emt 0:02:17]} 23. b4 {[%emt 0:04:15]} Qc7 {[%emt 0:01:50]} 24. Nd2 {[%emt 0:03:58]} e5 {[%emt 0:00:45]} 25. Bd5+ {[%emt 0:02:14]} Kg7 {[%emt 0:00:27]} 26. b5 {[%emt 0:03:58]} Rac8 {[%emt 0:02:07]} 27. Qe4 {[%emt 0:02:32]} Nd6 {[%emt 0:00:37]} 28. Qe2 {[%emt 0:02:14]} Bg4 {[%emt 0:00:42]} 29. f3 {[%emt 0:00:19]} Bf5 {[%emt 0:00:13]} 30. g4 {[%emt 0:03:04]} Bc2 {[%emt 0:02:06]} 31. g5 {[%emt 0:01:18]} Bxd1 {[%emt 0:00:23]} 32. gxf6+ {[%emt 0:00:05]} Kh7 {[%emt 0:00:05]} 33. Rxd1 {[%emt 0:01:55]} Rce8 {[%emt 0:01:25]} 34. Kh1 {[%emt 0:00:15]} Rhf8 {[%emt 0:00:15]} 35. Ne4 {[%emt 0:00:41]} Nxe4 {[%emt 0:00:09]} 36. Qxe4 {[%emt 0:00:19]} Rxf6 {[%emt 0:00:14]} 37. Qh4 {[%emt 0:01:23]} Rf4 {[%emt 0:00:36]} 38. Qg5 {[%emt 0:00:33]} Qe7 {[%emt 0:00:32]} 39. Qxe7+ {[%emt 0:00:35]} Rxe7 {[%emt 0:00:01]} 40. Kg2 {[%emt 0:00:18]} b6 {[%emt 0:00:43]} 0-1